bitfinex/quotes_SOLUSD_20250130
["timestamp","ask_amount","ask_price","bid_price","bid_amount"]
[1738240431521,7.96733999,240.27,240.19,7.96733999]
[1738240431728,8.03034,240.3,240.23,7.96733999]
[1738240432165,13.41184853,240.29,240.23,7.96733999]
[1738240432310,20.0,240.27,240.23,7.96733999]
[1738240432806,20.0,240.27,240.21,7.96733999]
[1738240433233,20.0,240.27,240.22,4.1628]
[1738240439033,7.96733999,240.29,240.22,4.1628]
[1738240439240,7.96733999,240.28,240.21,1.6246]
[1738240439740,7.96733999,240.26,240.21,1.6246]
[1738240439940,7.96733999,240.25,240.21,1.6246]
[1738240440144,7.96733999,240.24,240.21,1.6246]
[1738240440450,7.96733999,240.26,240.21,1.6246]
[1738240441113,12.12953999,240.26,240.21,1.6246]
[1738240441317,21.37918852,240.25,240.17,7.99733999]
[1738240441538,7.96733999,240.22,240.17,0.03]
[1738240442244,7.96733999,240.23,240.17,0.03]
[1738240442540,7.96733999,240.23,240.17,7.99733999]
[1738240442541,13.41184853,240.23,240.17,7.99733999]
[1738240443247,0.12549,240.24,240.17,7.99733999]
[1738240443451,4.1616,240.29,240.23,7.96733999]
[1738240443654,0.063,240.3,240.25,7.96733999]
[1738240443861,20.0,240.29,240.25,7.96733999]
[1738240444423,20.0,240.29,240.23,7.96733999]
[1738240444636,20.0,240.29,240.22,7.96733999]
[1738240445529,20.0,240.29,240.23,4.1626]
[1738240445853,20.0,240.29,240.24,7.96733999]
[1738240447179,4.2244,240.3,240.24,7.96733999]
[1738240448746,0.063,240.3,240.24,12.12973999]
[1738240448953,0.063,240.3,240.26,7.96733999]
[1738240449685,0.063,240.3,240.29,7.96733999]
[1738240450752,0.063,240.3,240.29,12.75301941]
[1738240460386,0.063,240.3,240.28,7.96733999]
[1738240460587,0.063,240.3,240.25,136.2779]
[1738240460588,0.063,240.3,240.25,5.7402]
[1738240460791,7.96733999,240.29,240.23,6.1186]
[1738240460981,7.96733999,240.29,240.23,10.2812]
[1738240461607,7.96733999,240.29,240.23,6.1186]
[1738240461885,7.96733999,240.28,240.21,0.03]
[1738240462092,7.96733999,240.25,240.21,0.03]
[1738240462687,12.48871725,240.25,240.21,0.03]
[1738240463195,12.48871725,240.26,240.21,0.03]
[1738240464392,17.57364853,240.28,240.21,0.03]
[1738240464393,12.48871725,240.24,240.21,0.03]
[1738240464575,13.41184853,240.23,240.21,0.03]
[1738240464973,12.48871725,240.24,240.21,0.03]
[1738240465184,12.48871725,240.25,240.21,0.03]
[1738240465880,12.48871725,240.23,240.21,0.03]
[1738240466409,0.12549,240.24,240.21,0.03]
[1738240466579,12.48871725,240.23,240.21,0.03]
[1738240467571,13.41184853,240.22,240.21,0.03]
[1738240467972,12.48871725,240.23,240.21,0.03]
[1738240468393,12.48871725,240.28,240.21,0.03]
[1738240468603,12.48871725,240.28,240.22,12.48871725]
[1738240468899,25.90056578,240.24,240.21,0.03]
[1738240469689,12.48871725,240.26,240.21,0.03]
[1738240470008,13.41184853,240.25,240.21,0.03]
[1738240472501,12.48871725,240.26,240.21,0.03]
[1738240472894,13.53733853,240.25,240.21,0.03]
[1738240473091,12.48871725,240.23,240.21,0.03]
[1738240473479,13.41184853,240.23,240.21,0.03]
[1738240474601,13.41184853,240.24,240.21,0.03]
[1738240476211,25.90056578,240.22,240.21,0.03]
[1738240476390,26.73850817,240.22,240.21,0.03]
[1738240476791,30.90130817,240.22,240.21,0.03]
[1738240477007,30.43983578,240.22,240.21,0.03]
[1738240478206,31.02679817,240.22,240.21,0.03]
[1738240480597,30.56532578,240.22,240.21,0.03]
[1738240482706,26.02605578,240.22,240.21,0.03]
[1738240482891,13.53733853,240.22,240.21,0.03]
[1738240485011,13.41184853,240.22,240.21,0.03]
[1738240485213,7.99423671,240.27,240.21,0.03]
[1738240485692,10.75423671,240.29,240.21,8.02423671]
[1738240486206,20.0,240.25,240.21,8.02423671]
[1738240486408,20.0,240.25,240.22,4.1628]
[1738240486912,0.063,240.3,240.23,7.99423671]
[1738240487098,0.063,240.3,240.25,7.99423671]
[1738240489110,0.063,240.3,240.21,0.03]
[1738240489111,21.46908524,240.3,240.23,7.99423671]
[1738240489304,21.46908524,240.3,240.21,0.03]
[1738240489305,21.40608524,240.28,240.21,8.02423671]
[1738240489716,21.40608524,240.28,240.21,12.18723671]
[1738240491219,13.41184853,240.28,240.21,12.18723671]
[1738240491817,7.99423671,240.29,240.21,12.18723671]
[1738240492124,0.063,240.3,240.25,7.99423671]
[1738240492622,0.063,240.3,240.27,7.99423671]
[1738240492823,0.063,240.3,240.29,7.99423671]
[1738240494017,0.063,240.3,240.29,12.15583671]
[1738240494620,0.063,240.3,240.29,16.63559175]
[1738240505614,0.0001,240.3,240.29,19.01206175]
[1738240505816,0.063,240.36,240.32,20.12549]
[1738240506025,0.063,240.36,240.35,24.9479835]
[1738240506220,0.063,240.36,240.35,25.57179129]
[1738240506913,0.063,240.36,240.35,13.09779954]
[1738240507723,0.063,240.36,240.35,16.63449175]
[1738240509926,0.063,240.36,240.35,12.47399175]
[1738240511139,0.063,240.36,240.35,16.63449175]
[1738240511439,14.01626648,240.42,240.35,16.63449175]
[1738240511641,12.47399175,240.42,240.35,16.63449175]
[1738240512635,20.063,240.44,240.37,12.47399175]
[1738240512830,0.063,240.44,240.41,12.47399175]
[1738240514332,0.063,240.44,240.43,12.47399175]
[1738240514830,0.063,240.44,240.43,13.09771403]
[1738240515218,0.063,240.44,240.43,12.47399175]
[1738240516519,0.063,240.44,240.43,17.256926]
[1738240522725,0.063,240.44,240.43,13.097726]
[1738240523911,0.063,240.44,240.43,16.63319175]
[1738240526624,0.063,240.44,240.43,7.9736183]
[1738240527136,0.063,240.44,240.43,8.59725473]
[1738240527530,0.063,240.44,240.43,8.97372473]
[1738240528937,0.063,240.44,240.43,13.13292473]
[1738240529120,0.063,240.44,240.43,12.75645473]
[1738240534824,0.063,240.47,240.46,35.53733853]
[1738240535051,0.063,240.55,240.46,35.53733853]
[1738240535052,0.063,240.55,240.48,1.37647]
[1738240535222,0.063,240.55,240.54,7.9736183]
[1738240535937,0.063,240.55,240.51,7.9736183]
[1738240536742,0.063,240.55,240.52,7.9736183]
[1738240540047,0.02266389,240.55,240.52,7.9736183]
[1738240542526,0.02266389,240.55,240.54,7.9736183]
[1738240542735,0.02266389,240.55,240.54,12.1309183]
[1738240543226,0.02266389,240.55,240.54,20.0039183]
[1738240543552,0.02266389,240.55,240.54,20.62720415]
[1738240547968,0.02266389,240.55,240.54,12.75420415]
[1738240548972,0.02266389,240.55,240.54,14.13067415]
[1738240549471,6.389e-05,240.55,240.54,27.66801268]
[1738240549632,6.389e-05,240.55,240.54,162.36801268]
[1738240549836,6.389e-05,240.55,240.54,161.74472683]
[1738240550454,6.389e-05,240.55,240.54,147.2073883]
[1738240550950,6.389e-05,240.55,240.54,148.2073883]
[1738240552859,6.389e-05,240.55,240.54,148.2373883]
[1738240553962,6.389e-05,240.55,240.54,13.5373883]
[1738240554148,6.389e-05,240.55,240.54,12.78420787]
[1738240554349,6.389e-05,240.55,240.54,12.1609183]
[1738240555047,6.389e-05,240.55,240.54,12.7842564]
[1738240556771,6.389e-05,240.55,240.54,13.2862164]
[1738240556936,6.389e-05,240.55,240.54,26.69806493]
[1738240557138,6.389e-05,240.55,240.54,12.7842564]
[1738240557341,6.389e-05,240.55,240.54,12.1609183]
[1738240557558,6.389e-05,240.55,240.54,0.03]
[1738240562979,7.97368219,240.55,240.54,0.03]
[1738240563340,6.389e-05,240.55,240.54,0.03]
[1738240563578,6.389e-05,240.55,240.54,8.0036183]
[1738240566191,6.389e-05,240.55,240.54,12.1609183]
[1738240566690,6.389e-05,240.55,240.54,8.0036183]
[1738240566990,6.389e-05,240.55,240.54,0.03]
[1738240569865,6.389e-05,240.55,240.54,8.0036183]
[1738240571288,6.389e-05,240.55,240.54,12.1609183]
[1738240578998,6.389e-05,240.55,240.54,12.78429574]
[1738240585102,7.97368219,240.55,240.54,0.03]
[1738240585287,21.38553072,240.55,240.54,0.03]
[1738240585594,21.51102072,240.55,240.54,0.03]
[1738240586297,25.66812072,240.55,240.54,0.03]
[1738240587567,7.97368219,240.55,240.54,0.03]
[1738240591378,6.389e-05,240.55,240.54,0.03]
[1738240592679,4.15716389,240.55,240.54,0.03]
[1738240593198,6.389e-05,240.55,240.54,0.03]
[1738240599911,6.389e-05,240.55,240.54,8.0036183]
[1738240602091,6.389e-05,240.55,240.54,12.78440173]
[1738240603112,6.389e-05,240.55,240.54,12.1609183]
[1738240603415,6.389e-05,240.55,240.54,12.78435692]
[1738240604736,6.389e-05,240.55,240.54,0.03]
[1738240611412,7.97368219,240.55,240.54,0.03]
[1738240611612,21.38553072,240.55,240.54,0.03]
[1738240612696,25.54263072,240.55,240.54,0.03]
[1738240616206,17.56901242,240.55,240.54,0.03]
[1738240617015,6.389e-05,240.55,240.54,0.03]
[1738240629137,13.66289242,240.55,240.54,0.03]
[1738240629437,14.12436481,240.55,240.54,0.03]
[1738240630935,22.09798311,240.55,240.54,0.03]
[1738240631306,26.25508311,240.55,240.54,0.03]
[1738240632217,26.25508311,240.55,240.41,1.5714]
[1738240632218,20.25098,240.51,240.41,1.5714]
[1738240632515,7.9736183,240.46,240.41,0.03]
[1738240633433,7.9736183,240.43,240.41,0.03]
[1738240634342,4.1593,240.42,240.41,0.03]
[1738240634507,17.57114853,240.42,240.41,0.03]
[1738240635136,18.15811092,240.42,240.41,0.03]
[1738240635638,17.69663853,240.42,240.41,0.03]
[1738240637408,17.94761853,240.42,240.41,0.03]
[1738240641218,7.9736183,240.47,240.41,0.03]
[1738240641525,83.0,240.5,240.44,7.9736183]
[1738240641729,7.9736183,240.52,240.44,7.9736183]
[1738240642034,13.53733853,240.51,240.44,7.9736183]
[1738240643142,17.69513853,240.51,240.44,7.9736183]
[1738240643817,7.9736183,240.48,240.41,1.5737]
[1738240644017,13.41184853,240.47,240.41,1.5737]
[1738240644944,17.57034853,240.47,240.41,1.5737]
[1738240645141,13.41184853,240.47,240.41,1.5737]
[1738240646522,17.57034853,240.47,240.41,1.5737]
[1738240646721,7.9736183,240.46,240.41,1.5737]
[1738240648120,4.1585,240.47,240.41,1.5737]
[1738240649831,7.9736183,240.46,240.41,1.5737]
[1738240650036,12.1324183,240.46,240.41,1.5737]
[1738240650238,13.41184853,240.45,240.41,0.03]
[1738240651545,17.57084853,240.45,240.41,0.03]
[1738240652235,4.159,240.45,240.41,0.03]
[1738240652948,13.41184853,240.44,240.41,0.03]
[1738240653146,8.2245983,240.42,240.41,0.03]
[1738240653539,12.3838983,240.42,240.41,0.03]
[1738240654848,25.79574683,240.42,240.41,0.03]
[1738240655053,27.25721922,240.42,240.41,0.0001]
[1738240655435,28.25721922,240.42,240.41,0.0001]
[1738240657053,28.50819922,240.42,240.41,0.0001]
[1738240657252,0.12549,240.37,240.29,0.03]
[1738240657435,7.9736183,240.32,240.29,0.03]
[1738240659168,7.9736183,240.34,240.29,0.03]
[1738240660559,13.41184853,240.33,240.29,0.03]
[1738240660768,17.57274853,240.33,240.29,0.03]
[1738240661558,7.9736183,240.34,240.29,0.03]
[1738240661761,12.1344183,240.34,240.29,0.03]
[1738240664264,21.38546683,240.36,240.29,0.03]
[1738240664455,4.28579,240.37,240.3,7.9736183]
[1738240664645,13.41184853,240.36,240.3,7.9736183]
[1738240665748,13.41184853,240.36,240.29,8.0036183]
[1738240665958,21.38546683,240.36,240.29,8.0036183]
[1738240666266,12.1344183,240.34,240.29,0.03]
[1738240667264,4.1608,240.34,240.29,0.03]
[1738240667467,25.54596683,240.36,240.29,8.0036183]
[1738240667972,7.9736183,240.45,240.35,7.9736183]
[1738240668145,7.9736183,240.45,240.38,7.9736183]
[1738240668351,13.41184853,240.44,240.38,7.9736183]
[1738240668570,13.41184853,240.44,240.37,4.1602]
[1738240669467,13.41184853,240.44,240.36,12.1340183]
[1738240670870,13.41184853,240.44,240.38,7.9736183]
[1738240672392,20.0,240.44,240.38,7.9736183]
[1738240672579,25.66945683,240.47,240.39,6.4643]
[1738240673788,13.41184853,240.45,240.39,6.4643]
[1738240674000,21.38546683,240.45,240.39,6.4643]
[1738240674296,12.1321183,240.47,240.39,6.4643]
[1738240674475,12.1321183,240.47,240.39,10.6241]
[1738240674985,12.59359069,240.47,240.39,6.4643]
[1738240675294,0.12549,240.44,240.36,7.9736183]
[1738240675475,0.12549,240.44,240.34,6.071]
[1738240675476,7.9736183,240.41,240.34,6.071]
[1738240675670,7.9736183,240.37,240.34,6.071]
[1738240675993,12.1339183,240.37,240.32,1.6087]
[1738240676791,13.53733853,240.36,240.32,1.6087]
[1738240677389,7.9736183,240.37,240.32,1.6087]
[1738240678783,7.9736183,240.35,240.3,4.1614]
[1738240679079,7.9736183,240.35,240.29,4.1916]
[1738240679797,13.41184853,240.34,240.29,0.03]
[1738240679985,7.9736183,240.3,240.29,0.03]
[1738240680589,7.9736183,240.32,240.29,0.03]
[1738240681201,7.9736183,240.34,240.29,0.03]
[1738240681390,13.41184853,240.35,240.29,0.03]
[1738240682501,7.9736183,240.34,240.29,0.03]
[1738240683000,13.53733853,240.31,240.29,0.03]
[1738240684705,0.37647,240.33,240.29,0.03]
[1738240684706,7.9736183,240.33,240.29,0.03]
[1738240685480,12.1342183,240.35,240.29,0.03]
[1738240685684,7.9736183,240.33,240.29,0.03]
[1738240691897,21.38546683,240.35,240.29,0.03]
[1738240692516,12.72078069,240.37,240.29,0.03]
[1738240692698,83.37647,240.38,240.29,0.03]
[1738240692699,83.0,240.38,240.3,7.9736183]
[1738240692899,83.0,240.38,240.32,7.9736183]
[1738240693213,83.0,240.38,240.34,7.9736183]
[1738240693416,13.47484853,240.41,240.34,7.9736183]
[1738240693599,0.063,240.41,240.36,7.9736183]
[1738240693798,0.063,240.41,240.37,4.1602]
[1738240694310,0.063,240.41,240.38,7.9736183]
[1738240695604,0.063,240.41,240.37,4.1602]
[1738240695605,0.063,240.41,240.4,7.9736183]
[1738240695806,0.063,240.41,240.4,12.1333183]
[1738240696307,0.063,240.41,240.4,7.9736183]
[1738240696614,0.063,240.41,240.36,12.1340183]
[1738240697028,4.2225,240.41,240.35,1.6635]
[1738240697230,0.063,240.41,240.35,1.6635]
[1738240698401,4.2225,240.41,240.35,1.6635]
[1738240698895,0.063,240.41,240.35,1.6635]
[1738240699205,13.47484853,240.41,240.35,1.6635]
[1738240699525,17.63444853,240.41,240.35,1.6635]
[1738240700721,8.43509069,240.4,240.35,1.6635]
[1738240701024,7.9736183,240.38,240.32,10.2252]
[1738240702408,7.9736183,240.34,240.29,0.03]
[1738240702604,7.9736183,240.32,240.29,0.03]
[1738240702918,13.41184853,240.31,240.29,0.03]
[1738240704008,7.9736183,240.3,240.29,0.03]
[1738240704726,13.41184853,240.31,240.29,0.03]
[1738240704727,25.89483375,240.31,240.29,0.03]
[1738240711318,13.87332092,240.3,240.29,0.03]
[1738240711524,14.12430092,240.3,240.29,0.03]
[1738240713717,18.41119092,240.3,240.29,0.03]
[1738240714037,30.89417614,240.3,240.29,0.03]
[1738240714936,25.89483375,240.3,240.29,0.03]
[1738240717640,30.30721375,240.3,240.29,0.03]
[1738240718027,30.76868614,240.3,240.29,0.03]
[1738240718552,30.89417614,240.3,240.29,0.03]
[1738240722248,31.89417614,240.3,240.29,0.03]
[1738240724355,30.89417614,240.3,240.29,0.03]
[1738240724553,26.40527048,240.3,240.29,0.03]
[1738240724949,27.40527048,240.3,240.29,0.03]
[1738240725851,26.40527048,240.3,240.29,0.03]
[1738240727650,28.94457048,240.3,240.29,0.03]
[1738240727851,27.94457048,240.3,240.29,0.03]
[1738240728064,28.94457048,240.3,240.29,0.03]
[1738240730035,28.94457048,240.3,240.29,0.0001]
[1738240731034,34.55816662,240.3,240.29,0.0001]
[1738240731439,36.22534462,240.3,240.29,0.0001]
[1738240734860,36.18825427,240.3,240.29,0.0001]
[1738240737165,13.41184853,240.25,240.21,0.03]
[1738240737469,20.25098,240.26,240.21,0.03]
[1738240737470,41.53141809,240.22,240.21,0.03]
[1738240739558,45.69421809,240.22,240.21,0.03]
[1738240740174,48.70519809,240.22,240.21,0.03]
[1738240740574,49.16667048,240.22,240.21,0.03]
[1738240743157,13.66282853,240.21,240.17,0.03]
[1738240743477,41.40592809,240.18,240.17,0.03]
[1738240744072,45.69491809,240.18,240.17,0.03]
[1738240744576,13.78831853,240.17,240.12,0.5645]
[1738240744757,7.99407956,240.13,240.12,0.5645]
[1738240745573,7.99407956,240.14,240.12,0.5645]
[1738240746886,13.41184853,240.13,240.12,0.5645]
[1738240749791,25.57032809,240.13,240.09,6.3029]
[1738240750889,26.03180048,240.13,240.09,6.3029]
[1738240751488,21.40592809,240.12,240.09,6.3029]
[1738240751695,7.99407956,240.12,240.09,6.3029]
[1738240752182,7.99407956,240.13,240.09,6.3029]
[1738240753982,21.53141809,240.14,240.09,6.3029]
[1738240754370,25.69561809,240.14,240.09,6.3029]
[1738240755801,20.0,240.14,240.09,18.46197956]
[1738240756000,13.53733853,240.16,240.09,18.46197956]
[1738240756182,7.99407956,240.12,240.09,6.3029]
[1738240756589,8.11956956,240.12,240.09,6.3029]
[1738240758292,21.53141809,240.12,240.09,6.3029]
[1738240758607,13.53733853,240.12,240.09,6.3029]
[1738240759583,13.41184853,240.12,240.09,6.3029]
[1738240760206,14.29697956,240.16,240.09,10.468]
[1738240760412,6.3029,240.16,240.1,8.02407956]
[1738240760615,7.99407956,240.18,240.1,8.02407956]
[1738240760792,21.40592753,240.17,240.1,8.02407956]
[1738240761180,7.99407956,240.16,240.1,8.02407956]
[1738240761689,41.78239809,240.12,240.1,0.03]
[1738240761892,42.24387048,240.12,240.1,0.03]
[1738240762776,41.78239809,240.12,240.1,0.03]
[1738240763182,73.75871633,240.12,240.1,0.03]
[1738240764197,45.94689809,240.12,240.1,0.03]
[1738240764991,41.78239809,240.12,240.1,0.03]
[1738240765688,7.99407956,240.14,240.1,0.03]
[1738240767106,7.99407956,240.16,240.1,0.03]
[1738240767613,8.11956956,240.18,240.1,8.02407956]
[1738240767988,13.41184853,240.17,240.1,8.02407956]
[1738240768706,16.44963156,240.18,240.11,4.1947]
[1738240769009,0.063,240.16,240.13,8.1984]
[1738240771012,0.063,240.16,240.13,12.3626]
[1738240776110,0.063,240.16,240.14,7.99407956]
[1738240777419,0.063,240.16,240.15,4.164]
[1738240779415,0.063,240.16,240.14,7.99407956]
[1738240779722,0.063,240.16,240.13,12.3626]
[1738240780229,7.99407956,240.15,240.11,4.1947]
[1738240780727,0.063,240.16,240.11,4.1947]
[1738240781035,0.063,240.16,240.13,0.03]
[1738240783733,0.063,240.16,240.14,7.99407956]
[1738240785449,0.063,240.16,240.15,4.164]
[1738240791453,0.063,240.16,240.15,11.8718]
[1738240794848,0.063,240.16,240.15,11.83470964]
[1738240800756,0.063,240.16,240.14,7.99407956]
[1738240801644,0.063,240.16,240.13,12.18837956]
[1738240804346,0.063,240.16,240.13,0.03]
[1738240805637,0.063,240.16,240.14,7.99407956]
[1738240806864,0.063,240.16,240.14,12.15807956]
[1738240807058,0.063,240.16,240.15,7.99407956]
[1738240807983,0.063,240.22,240.18,20.0]
[1738240808150,0.063,240.22,240.2,7.99407956]
[1738240808844,0.063,240.22,240.16,7.99407956]
[1738240809063,8.05707956,240.22,240.14,12.15827956]
[1738240809257,7.99407956,240.2,240.14,4.1642]
[1738240809456,8.05707956,240.22,240.14,12.15827956]
[1738240811856,13.41184853,240.21,240.13,0.03]
[1738240812568,13.41184853,240.21,240.13,4.1944]
[1738240812867,13.41184853,240.21,240.14,7.99407956]
[1738240813560,0.063,240.22,240.16,7.99407956]
[1738240813869,0.063,240.22,240.18,7.99407956]
[1738240814654,0.063,240.22,240.18,6.89907956]
[1738240814849,0.063,240.22,240.18,7.99407956]
[1738240815055,0.063,240.22,240.2,7.99407956]
[1738240816073,0.063,240.22,240.2,12.15717956]
[1738240823698,0.063,240.22,240.2,4.1631]
[1738240824172,0.063,240.22,240.18,7.99407956]
[1738240824482,0.063,240.22,240.17,4.1637]
[1738240825481,0.063,240.22,240.18,7.99407956]
[1738240827487,0.063,240.22,240.18,12.15747956]
[1738240829087,0.063,240.22,240.16,12.15777956]
[1738240831478,7.99407956,240.21,240.15,0.03]
[1738240831676,21.40592809,240.16,240.15,0.03]
[1738240832385,21.65690809,240.16,240.15,0.03]
[1738240833390,21.78239809,240.16,240.15,0.03]
[1738240833595,25.94619809,240.16,240.15,0.03]
[1738240834998,21.40592809,240.16,240.15,0.03]
[1738240835378,21.78239809,240.16,240.15,0.03]
[1738240837500,25.94619809,240.16,240.15,0.03]
[1738240838082,7.99407956,240.16,240.15,0.03]
[1738240838894,20.0,240.16,240.15,0.03]
[1738240839193,41.40592809,240.16,240.15,0.03]
[1738240840787,45.56972809,240.16,240.15,0.03]
[1738240844806,45.94619809,240.16,240.15,0.03]
[1738240858316,41.40592809,240.16,240.15,0.03]
[1738240858616,27.99407956,240.16,240.15,0.03]
[1738240859417,46.28218048,240.16,240.15,0.03]
[1738240862815,46.40767048,240.16,240.15,0.03]
[1738240863210,13.78831853,240.15,240.13,0.03]
[1738240863416,8.83202195,240.14,240.13,0.03]
[1738240865105,26.53356048,240.14,240.13,0.03]
[1738240868010,60.50987872,240.14,240.13,0.03]
[1738240868206,1.37647,240.12,240.11,0.03]
[1738240868402,55.22018872,240.12,240.11,0.03]
[1738240869514,54.22018872,240.12,240.11,0.03]
[1738240869715,22.24387048,240.12,240.11,0.03]
[1738240870221,26.40837048,240.12,240.11,0.03]
[1738240870721,25.94689809,240.12,240.11,0.03]
[1738240871021,25.57042809,240.12,240.11,0.03]
[1738240871227,25.94689809,240.12,240.11,0.03]
[1738240871921,26.07238809,240.12,240.11,0.03]
[1738240872120,4.1649,240.1,240.01,11.78037956]
[1738240872308,7.99407956,240.09,240.01,11.78037956]
[1738240875925,7.99407956,240.09,240.01,11.81037956]
[1738240877333,7.99407956,240.11,240.03,7.99407956]
[1738240877512,12.15847956,240.13,240.05,7.99407956]
[1738240877712,13.41184853,240.12,240.05,7.99407956]
[1738240878227,7.99407956,240.13,240.05,7.99407956]
[1738240878736,7.99407956,240.11,240.04,1.5457]
[1738240879228,7.99407956,240.09,240.04,1.5457]
[1738240882337,7.99407956,240.09,240.02,12.16037956]
[1738240882523,12.15917956,240.09,240.02,4.1663]
[1738240883943,12.15917956,240.09,240.02,7.99407956]
[1738240884942,7.99407956,240.1,240.02,7.99407956]
[1738240885242,7.99407956,240.11,240.04,7.99407956]
[1738240886245,12.15877956,240.11,240.04,12.15987956]
[1738240887955,12.15877956,240.11,240.04,12.18987956]
[1738240888137,7.99407956,240.09,240.04,0.03]
[1738240888540,7.99407956,240.05,240.04,0.03]
[1738240888851,21.40592809,240.05,240.04,0.03]
[1738240889538,21.53141809,240.05,240.04,0.03]
[1738240890165,25.69711809,240.05,240.04,0.03]
[1738240894949,26.07358809,240.05,240.04,0.03]
[1738240895135,37.14050023,240.05,240.04,0.03]
[1738240897064,38.14050023,240.05,240.04,0.03]
[1738240898958,37.14050023,240.05,240.04,0.03]
[1738240899334,32.64145806,240.05,240.04,0.03]
[1738240900458,32.64145806,240.05,240.04,0.0001]
[1738240900639,37.14050023,240.05,240.04,0.0001]
[1738240901059,38.14050023,240.05,240.04,0.0001]
[1738240901558,37.14050023,240.05,240.04,0.0001]
[1738240901751,38.14050023,240.05,240.04,0.0001]
[1738240902260,37.14050023,240.05,240.04,0.0001]
[1738240903353,20.0,240.02,240.01,0.03]
[1738240903546,47.97379806,240.02,240.01,0.03]
[1738240904768,52.14009806,240.02,240.01,0.03]
[1738240905763,52.26558806,240.02,240.01,0.03]
[1738240906661,52.64205806,240.02,240.01,0.03]
[1738240907576,52.18058567,240.02,240.01,0.03]
[1738240910153,52.64205806,240.02,240.01,0.03]
[1738240910552,2.37647,239.94,239.93,0.03]
[1738240910772,20.37647,239.91,239.9,0.03]
[1738240910968,42.24387048,239.91,239.9,0.03]
[1738240911166,52.84931023,239.91,239.9,0.03]
[1738240911858,57.01751023,239.91,239.9,0.03]
[1738240913472,57.14300023,239.91,239.9,0.03]
[1738240914079,57.14300023,239.91,239.88,0.03]
[1738240914080,14.78831853,239.9,239.88,0.03]
[1738240914250,54.09469872,239.89,239.88,0.03]
[1738240915175,20.0,239.85,239.76,7.6074]
[1738240915377,7.99407956,239.79,239.76,7.6074]
[1738240916757,7.99407956,239.8,239.76,7.6074]
[1738240917272,7.99407956,239.79,239.76,6.0253]
[1738240917475,7.99407956,239.8,239.76,6.0253]
[1738240918763,27.99407956,239.79,239.76,6.0253]
[1738240918949,27.99407956,239.79,239.72,9.64947956]
[1738240919155,27.99407956,239.79,239.72,1.6554]
[1738240919480,27.99407956,239.79,239.72,5.8268]
[1738240919866,20.0,239.79,239.73,7.99407956]
[1738240920057,7.99407956,239.82,239.75,7.99407956]
[1738240920371,20.0,239.83,239.76,7.99407956]
[1738240920572,7.99407956,239.84,239.77,6.5033]
[1738240921377,13.41184853,239.84,239.77,18.66787956]
[1738240921557,7.99407956,239.85,239.79,7.99407956]
[1738240921762,8.11956956,239.87,239.8,1.5398]
[1738240921962,13.41184853,239.86,239.8,1.5398]
[1738240922778,7.99407956,239.85,239.8,1.5398]
[1738240924878,7.99407956,239.83,239.8,1.5398]
[1738240925969,7.99407956,239.85,239.8,1.5398]
[1738240926791,7.99407956,239.85,239.72,0.03]
[1738240926792,20.12549,239.81,239.72,0.03]
[1738240926986,7.99407956,239.8,239.72,4.2014]
[1738240927190,15.98815956,239.84,239.75,7.99407956]
[1738240927562,7.99408,239.84,239.77,7.99407956]
[1738240927766,7.99407956,239.86,239.79,7.99407956]
[1738240927962,15.98815856,239.86,239.79,7.99407956]
[1738240929269,7.99407956,239.94,239.84,7.99407956]
[1738240929466,7.99407956,239.94,239.87,7.99407956]
[1738240929663,7.99407956,239.94,239.85,7.99407956]
[1738240929871,7.99407956,239.88,239.83,8.0261]
[1738240932270,0.12549,239.93,239.83,12.1956]
[1738240932271,7.99407956,239.9,239.83,12.1956]
[1738240932471,7.99407956,239.9,239.83,20.18967956]
[1738240934484,7.99407956,239.92,239.83,20.18967956]
[1738240936178,7.99407956,239.9,239.83,20.18967956]
[1738240937683,8.05707956,239.92,239.83,20.18967956]
[1738240939770,7.99407956,239.9,239.83,20.18967956]
[1738240941172,12.16227956,239.91,239.83,20.18967956]